fUST/lending_fUST_20240106
["ID","MTS","AMOUNT","RATE_DAILY","PERIOD"]
[310371665,1704517832735,-1745.83994506,0.00021705,2]
[310371666,1704517832748,-1238.90884901,0.00021706,2]
[310371667,1704517832757,-760.29461943,0.00021706,2]
[310371668,1704517832769,-9726.76235635,0.00021706,2]
[310371669,1704517832779,-20845.41719757,0.00021706,2]
[310371670,1704517832793,-575.65422526,0.00021715,2]
[310371672,1704517832810,-300.03141992,0.00021715,2]
[310371674,1704517832819,-525.20504904,0.00021715,2]
[310371676,1704517832828,-161.78040679,0.00021715,2]
[310371677,1704517832837,-154.82968734,0.00021716,2]
[310371678,1704517832846,-7858.42772256,0.00021716,2]
[310371679,1704517832855,-1020.21297213,0.00021716,2]
[310371680,1704517832864,-176.40697611,0.00021716,2]
[310371681,1704517832874,-3703.55729245,0.00021716,2]
[310371682,1704517832883,-242.3851774,0.00021717,2]
[310371683,1704517832894,-294.17313043,0.00021717,2]
[310371684,1704517832904,-19645.0560538,0.00021717,2]
[310371685,1704517832913,-26627.56604897,0.00021717,2]
[310371686,1704517833828,200.0,0.00023876,7]
[310371687,1704517833892,200.0,0.00024658,15]
[310371688,1704517834615,280.0,0.00026263,15]
[310371689,1704517835470,-5000.0,0.00021697,3]
[310371690,1704517835649,-5000.0,0.00021697,3]
[310371691,1704517835787,-5000.0,0.00021697,3]
[310371692,1704517835952,-4272.53,0.00021697,3]
[310371707,1704517838829,-3735.0637491,0.00021703,2]
[310371709,1704517838839,-400.86557037,0.00021716,2]
[310371710,1704517838849,-51674.28392839,0.00021717,2]
[310371711,1704517838859,-166.27946488,0.00021718,2]
[310371713,1704517838869,-26395.66027394,0.00021718,2]
[310371715,1704517838878,-26577.27858257,0.0002182,2]
[310371717,1704517838887,-166.666666,0.00021918,2]
[310371719,1704517838897,-276.3757026,0.00021941,2]
[310371721,1704517838906,-155.25100521,0.0002198,2]
[310371723,1704517838915,-309.65937468,0.0002199,2]
[310371724,1704517838926,-369.38802941,0.0002199,2]
[310371726,1704517838935,-4912.75517152,0.00022,2]
[310371729,1704517838945,-156.72230709,0.00022,2]
[310371731,1704517838954,-3916.3398371,0.00022,2]
[310371733,1704517838964,-2068.68169854,0.00022269,2]
[310371735,1704517838973,-2098.68320007,0.00022269,2]
[310371737,1704517838982,-923.45115084,0.00022269,2]
[310371739,1704517838992,-501.20603679,0.00022269,2]
[310371741,1704517839001,-852.82114132,0.00022281,2]
[310371742,1704517839010,-166.666666,0.00022431,2]
[310371744,1704517839019,-166.666666,0.00022944,2]
[310371746,1704517839030,-2091.44093784,0.00023,2]
[310371747,1704517839040,-1688.45508381,0.0002327,2]
[310371748,1704517839050,-1100.504993,0.00023283,2]
[310371749,1704517839060,-155.48778678,0.00023287,2]
[310371750,1704517839069,-500.0,0.00023288,2]
[310371751,1704517839078,-349.10346585,0.00023288,2]
[310371752,1704517839088,-500.0,0.00023288,2]
[310371753,1704517839096,-390.71245859,0.00023288,2]
[310371754,1704517839105,-410.13909952,0.00023288,2]
[310371755,1704517839115,-500.0,0.00023288,2]
[310371756,1704517839124,-500.0,0.00023288,2]
[310371757,1704517839134,-227.53477487,0.00023288,2]
[310371758,1704517839144,-407.48190603,0.00023288,2]
[310371759,1704517839153,-166.666666,0.00023456,2]
[310371760,1704517839163,-260.18779021,0.00023703,2]
[310371761,1704517839172,-166.666666,0.00023969,2]
[310371762,1704517839181,-154.82968734,0.00023972,2]
[310371763,1704517839190,-17926.09374458,0.00023998,2]
[310371764,1704517839199,-2291.27896623,0.00024,2]
[310371765,1704517839209,-166.666666,0.00024482,2]
[310371766,1704517839218,-200.0,0.00024998,2]
[310371767,1704517839227,-332.49059954,0.00024998,2]
[310371768,1704517839237,-1334.43163476,0.00024999,2]
[310371769,1704517839246,-295.37439755,0.00024999,2]
[310371770,1704517839256,-319.84575528,0.00024999,2]
[310371771,1704517839266,-155.21939901,0.00025,2]
[310371772,1704517839275,-998.9599558,0.00025,2]
[310371773,1704517839285,-4707.01098899,0.00025,2]
[310371774,1704517839294,-3000.0,0.00025,2]
[310371775,1704517839303,-2483.08597309,0.00025,2]
[310371776,1704517839313,-613.44573934,0.00025,2]
[310371777,1704517839322,-1003.74472514,0.00025,2]
[310371778,1704517839332,-9286.90575802,0.00025297,2]
[310371779,1704517839341,-260.18779021,0.00025766,2]
[310371780,1704517839351,-240.49392457,0.00026,2]
[310371781,1704517839361,-525.41295756,0.00026,2]
[310371782,1704517839370,-762.80188617,0.00026555,2]
[310371783,1704517839379,-3004.54432201,0.00026555,2]
[310371784,1704517839389,-3388.41467337,0.00027,2]
[310371785,1704517839401,-22443.13594493,0.000275,2]
[310371786,1704517839411,-260.18779021,0.00027829,2]
[310371787,1704517839420,-304.72111209,0.00028,2]
[310371788,1704517839429,-344.52854123,0.00028,2]
[310371789,1704517839439,-312.6006807,0.000288,2]
[310371790,1704517839448,-391.0,0.00028889,15]
[310371791,1704517839457,-3659.85423734,0.00029,2]
[310371792,1704517839466,-1321.80054486,0.000297,2]
[310371793,1704517839475,-500.0,0.00029789,4]
[310371794,1704517839485,-500.0,0.00029789,4]
[310371795,1704517839493,-470.84169284,0.00029789,4]
[310371796,1704517839502,-637.21740134,0.00029789,4]
[310371797,1704517839511,-629.28127641,0.00029789,4]
[310371798,1704517839520,-218164.49611347,0.0002979,7]
[310371799,1704517839531,-260.18779021,0.00029892,2]
[310371800,1704517839541,-375.78758832,0.00029992,2]
[310371801,1704517839551,-2615.09422939,0.0003,10]
[310371802,1704517839560,-688.55677432,0.0003,4]
[310371803,1704517839570,-6538.37354299,0.0003,4]
[310371804,1704517839580,-154.82968734,0.0003,2]
[310371805,1704517839590,-641.40234859,0.0003,4]
[310371806,1704517839599,-264.66072966,0.00030743,4]
[310371807,1704517839609,-606.18577739,0.00030743,4]
[310371808,1704517839618,-1574.6122842,0.00030743,4]
[310371809,1704517839628,-15867.43030525,0.00030755,4]
[310371810,1704517839638,-520.52631159,0.00030755,4]
[310371811,1704517839646,-677.88536449,0.00030755,4]
[310371812,1704517839655,-362.46476808,0.00030756,4]
[310371813,1704517839665,-228.43848088,0.00030757,4]
[310371814,1704517839675,-200.9873717,0.00030757,4]
[310371815,1704517839684,-300.87342833,0.00030758,4]
[310371816,1704517839694,-285.94236164,0.00030758,4]
[310371817,1704517839705,-180.76962733,0.00030758,2]
[310371818,1704517839714,-197.19342051,0.00030758,4]
[310371819,1704517839723,-3877.68176739,0.00030758,4]
[310371820,1704517839732,-3160.40702584,0.00030758,4]
[310371821,1704517839741,-1096.03397246,0.00030759,4]
[310371822,1704517839750,-172.9052282,0.00030759,4]
[310371823,1704517839759,-284.86906359,0.00030759,4]
[310371824,1704517839770,-150.0,0.000308,2]
[310371825,1704517839780,-103870.08264571,0.00031,4]
[310371826,1704517839789,-200.0,0.00031778,15]
[310371827,1704517839803,-348.0,0.00031778,15]
[310371828,1704517839813,-620.00199151,0.0003201,2]
[310371829,1704517839828,-500.0,0.00032876,7]
[310371830,1704517839838,-418.03434394,0.00032876,7]
[310371831,1704517839847,-500.0,0.00032876,7]
[310371832,1704517839857,-500.0,0.00032876,7]
[310371833,1704517839866,-182.60432464,0.00032876,7]
[310371834,1704517839876,-151.0,0.00032917,2]
[310371835,1704517839886,-155.07727581,0.00033,4]
[310371836,1704517839896,-200.59,0.000333,4]
[310371837,1704517839905,-1000.0,0.00034,7]
[310371838,1704517839914,-11919.66758038,0.000345,2]
[310371839,1704517839926,-2553.161024,0.00034521,2]
[310371840,1704517839935,-200.0,0.00034956,15]
[310371841,1704517839945,-200.0,0.00034956,15]
[310371842,1704517839955,-8387.9427544,0.00034998,2]
[310371843,1704517839964,-3541.79156626,0.00035,2]
[310371844,1704517839973,-590.79111504,0.00035,2]
[310371845,1704517839983,-7798.15163609,0.00035,4]
[310371846,1704517839992,-796.36933,0.00035,7]
[310371847,1704517840002,-476.32081937,0.00035,4]
[310371848,1704517840011,-1455.75460259,0.00035,14]
[310371849,1704517840138,-2660.07799725,0.00035,4]
[310371850,1704517840148,-4349.6256334,0.00035,4]
[310371851,1704517840157,-310.65391414,0.00035,4]
[310371852,1704517840167,-8000.0,0.000351,30]
[310371853,1704517840176,-5205.44149201,0.00035432,2]
[310371854,1704517840185,-1826.47069896,0.00035432,2]
[310371855,1704517840195,-416.0,0.00035452,2]
[310371856,1704517840205,-282.5050157,0.00035499,7]
[310371857,1704517840215,-500.0,0.00035499,7]
[310371858,1704517840224,-500.0,0.00035499,7]
[310371859,1704517840234,-346.96095731,0.00035499,7]
[310371860,1704517840243,-352.913051,0.00035499,7]
[310371861,1704517840253,-39926.56661117,0.000355,14]
[310371862,1704517840263,-500.0,0.00035616,3]
[310371863,1704517840273,-505.41923659,0.00035616,3]
[310371864,1704517840286,-507.07556743,0.00035616,3]
[310371865,1704517840296,-506.75078264,0.00035616,3]
[310371866,1704517840305,-509.48262239,0.00035616,3]
[310371867,1704517840315,-340.97799337,0.00035616,3]
[310371868,1704517840324,-329.10985589,0.00035616,3]
[310371869,1704517840333,-506.03265185,0.00035616,3]
[310371870,1704517840342,-505.81350492,0.00035616,3]
[310371871,1704517840352,-500.0,0.00035616,3]
[310371872,1704517840362,-500.0,0.00035616,3]
[310371873,1704517840371,-636.06,0.00035616,3]
[310371874,1704517840381,-510.00178322,0.00035616,3]
[310371875,1704517840391,-500.0,0.00035616,3]
[310371876,1704517840402,-500.0,0.00035616,3]
[310371877,1704517840411,-500.0,0.00035616,3]
[310371878,1704517840421,-500.0,0.00035616,3]
[310371879,1704517840431,-500.0,0.00035616,3]
[310371880,1704517840440,-500.0,0.00035616,3]
[310371881,1704517840450,-500.0,0.00035616,3]
[310371882,1704517840459,-500.0,0.00035616,3]
[310371883,1704517840469,-500.0,0.00035616,3]
[310371884,1704517840478,-337.06367174,0.00035616,3]
[310371885,1704517840487,-500.0,0.00035616,3]
[310371886,1704517840497,-500.0,0.00035616,3]
[310371887,1704517840506,-500.0,0.00035616,3]
[310371888,1704517840526,-500.0,0.00035616,3]
[310371889,1704517840539,-500.0,0.00035616,3]
[310371890,1704517840549,-1667.24,0.00035616,3]
[310371891,1704517840559,-500.0,0.00035616,3]
[310371892,1704517840569,-500.0,0.00035616,3]
[310371893,1704517840580,-500.0,0.00035616,3]
[310371894,1704517840590,-500.0,0.00035616,3]
[310371895,1704517840600,-500.0,0.00035616,3]
[310371896,1704517840610,-511.097766,0.00035616,3]
[310371897,1704517840620,-500.0,0.00035616,3]
[310371898,1704517840631,-500.0,0.00035616,3]
[310371899,1704517840641,-500.0,0.00035616,3]
[310371900,1704517840651,-505.29088612,0.00035616,3]
[310371901,1704517840661,-500.0,0.00035616,3]
[310371902,1704517840671,-500.0,0.00035616,3]
[310371903,1704517840681,-500.0,0.00035616,3]
[310371904,1704517840691,-500.0,0.00035616,3]
[310371905,1704517840701,-500.0,0.00035616,3]
[310371906,1704517840711,-597.78004292,0.00035616,3]
[310371907,1704517840721,-500.0,0.00035616,3]
[310371908,1704517840731,-502.72305038,0.00035616,3]
[310371909,1704517840741,-1506.95,0.00035616,3]
[310371910,1704517840751,-9724.27,0.00035616,3]
[310371911,1704517840761,-500.0,0.00035616,3]
[310371912,1704517840771,-500.0,0.00035616,3]
[310371913,1704517840784,-500.0,0.00035616,3]
[310371914,1704517840793,-500.0,0.00035616,3]
[310371915,1704517840803,-500.0,0.00035616,3]
[310371916,1704517840814,-510.97783528,0.00035616,3]
[310371917,1704517840824,-506.57414684,0.00035616,3]
[310371918,1704517840834,-515.89,0.00035616,3]
[310371919,1704517840844,-500.0,0.00035616,3]
[310371920,1704517840855,-966.27,0.00035616,3]
[310371921,1704517840866,-511.16309898,0.00035616,3]
[310371922,1704517840876,-500.0,0.00035616,3]
[310371923,1704517840885,-501.80203555,0.00035616,2]
[310371924,1704517840895,-500.0,0.00035616,3]
[310371925,1704517840905,-533.57313091,0.00035616,3]
[310371926,1704517840914,-194.38429124,0.00035616,7]
[310371927,1704517840925,-500.0,0.00035616,3]
[310371928,1704517840936,-500.0,0.00035616,3]
[310371929,1704517840945,-453.08820594,0.00035616,2]
[310371930,1704517840955,-212.85803751,0.00035616,2]
[310371931,1704517840965,-500.0,0.00035616,3]
[310371932,1704517840975,-166.364766,0.00035616,120]
[310371933,1704517840984,-300.0,0.000357,18]
[310371935,1704517840994,-2553.161024,0.00035798,2]
[310371937,1704517841003,-12261.66449794,0.000358,5]
[310371938,1704517841013,-418.68360299,0.0003589,3]
[310371939,1704517841022,-500.0,0.0003589,3]
[310371940,1704517841033,-500.0,0.0003589,3]
[310371941,1704517841042,-636.06,0.0003589,3]
[310371943,1704517841051,-511.43644294,0.0003589,3]
[310371944,1704517841060,-506.09346854,0.0003589,3]
[310371945,1704517841071,-507.20724551,0.0003589,3]
[310371946,1704517841081,-509.44134385,0.0003589,3]
[310371947,1704517841089,-500.0,0.0003589,3]
[310371948,1704517841098,-517.62035945,0.0003589,3]
[310371949,1704517841108,-505.08561459,0.0003589,3]
[310371951,1704517841117,-500.0,0.0003589,3]
[310371953,1704517841126,-529.41381062,0.0003589,3]
[310371954,1704517841136,-506.30776035,0.0003589,3]
[310371955,1704517841143,-500.0,0.0003589,3]
[310371956,1704517841151,-521.59429854,0.0003589,3]
[310371957,1704517841161,-518.86235743,0.0003589,3]
[310371958,1704517841170,-526.05114037,0.0003589,3]
[310371959,1704517841180,-1667.24,0.0003589,3]
[310371960,1704517841189,-500.0,0.0003589,3]
[310371961,1704517841199,-506.48336976,0.0003589,3]
[310371962,1704517841208,-527.67346704,0.0003589,3]
[310371963,1704517841218,-511.15113817,0.0003589,3]
[310371964,1704517841228,-511.82509961,0.0003589,3]
[310371965,1704517841237,-514.17023555,0.0003589,3]
[310371966,1704517841247,-500.0,0.0003589,3]
[310371967,1704517841256,-500.0,0.0003589,3]
[310371968,1704517841266,-508.31365666,0.0003589,3]
[310371969,1704517841277,-550.81688216,0.0003589,3]
[310371970,1704517841286,-500.0,0.0003589,3]
[310371971,1704517841297,-229.52217026,0.0003589,3]
[310371972,1704517841306,-500.0,0.0003589,3]
[310371973,1704517841315,-507.78877084,0.0003589,3]
[310371974,1704517841325,-1506.95,0.0003589,3]
[310371975,1704517841335,-9724.27,0.0003589,3]
[310371976,1704517841344,-507.08090987,0.0003589,3]
[310371977,1704517841355,-514.40614223,0.0003589,3]
[310371978,1704517841364,-531.73227445,0.0003589,3]
[310371979,1704517841373,-500.67464367,0.0003589,3]
[310371980,1704517841383,-520.9424481,0.0003589,3]
[310371981,1704517841396,-515.89,0.0003589,3]
[310371982,1704517841406,-500.0,0.0003589,3]
[310371983,1704517841415,-966.27,0.0003589,3]
[310371984,1704517841425,-525.09020232,0.0003589,3]
[310371985,1704517841434,-502.12330031,0.0003589,3]
[310371986,1704517841444,-404.45932086,0.0003589,3]
[310371987,1704517841453,-503.84331703,0.0003589,3]
[310371988,1704517841463,-523.03150165,0.0003589,3]
[310371989,1704517841472,-164.102703,0.00035994,2]
[310371990,1704517841483,-171.286408,0.00035994,2]
[310371991,1704517841493,-158.652167,0.00035994,2]
[310371992,1704517841503,-170.93356,0.00035994,2]
[310371993,1704517841512,-987.200355,0.00035994,2]
[310371994,1704517841522,-502.971403,0.00036,7]
[310371995,1704517841534,-151.0,0.00036045,2]
[310371996,1704517841544,-343.70654924,0.00036162,4]
[310371997,1704517841553,-249.97382645,0.00036162,4]
[310371998,1704517841563,-198.66992878,0.00036163,4]
[310371999,1704517841573,-2706.33955526,0.00036163,4]
[310372000,1704517841582,-556.18706958,0.00036164,3]
[310372001,1704517841593,-223.46103181,0.00036164,3]
[310372002,1704517841602,-636.06,0.00036164,3]
[310372003,1704517841612,-500.0,0.00036164,3]
[310372004,1704517841621,-500.0,0.00036164,3]
[310372005,1704517841631,-500.0,0.00036164,3]
[310372006,1704517841642,-1667.24,0.00036164,3]
[310372007,1704517841652,-417.15089141,0.00036164,3]
[310372008,1704517841663,-500.0,0.00036164,3]
[310372009,1704517841672,-500.0,0.00036164,3]
[310372010,1704517841682,-500.0,0.00036164,3]
[310372011,1704517841693,-500.0,0.00036164,3]
[310372012,1704517841702,-1506.95,0.00036164,3]
[310372013,1704517841712,-9724.27,0.00036164,3]
[310372014,1704517841722,-515.89,0.00036164,3]
[310372015,1704517841731,-383.63532071,0.00036164,3]
[310372016,1704517841740,-966.27,0.00036164,3]
[310372017,1704517841749,-636.06,0.00036438,3]
[310372018,1704517841758,-500.94262929,0.00036438,3]
[310372019,1704517841768,-500.0,0.00036438,3]
[310372020,1704517841780,-500.0,0.00036438,3]
[310372021,1704517841789,-1667.24,0.00036438,3]
[310372022,1704517841799,-258.16133869,0.00036438,3]
[310372023,1704517841808,-500.0,0.00036438,3]
[310372025,1704517841818,-500.0,0.00036438,3]
[310372026,1704517841827,-255.56943756,0.00036438,3]
[310372027,1704517841836,-1506.95,0.00036438,3]
[310372028,1704517841847,-9724.27,0.00036438,3]
[310372029,1704517841858,-515.89,0.00036438,3]
[310372030,1704517841868,-966.27,0.00036438,3]
[310372031,1704517841877,-155.0,0.0003644,2]
[310372032,1704517841886,-987.200355,0.00036443,2]
[310372033,1704517841895,-1272.00604442,0.00036458,2]
[310372034,1704517841905,-4916.92795324,0.00036474,3]
[310372035,1704517841914,-1604.12961689,0.00036474,2]
[310372036,1704517841924,-360.9291638,0.00036474,2]
[310372037,1704517841933,-636.06,0.00036712,3]
[310372038,1704517841943,-500.0,0.00036712,3]
[310372039,1704517841953,-472.67650371,0.00036712,3]
[310372040,1704517841963,-1667.24,0.00036712,3]
[310372041,1704517841973,-500.0,0.00036712,3]
[310372042,1704517841982,-500.0,0.00036712,3]
[310372043,1704517841992,-1506.95,0.00036712,3]
[310372044,1704517842000,-9724.27,0.00036712,3]
[310372045,1704517842010,-515.89,0.00036712,3]
[310372046,1704517842019,-966.27,0.00036712,3]
[310372047,1704517842030,-15528.05810637,0.00036758,5]
[310372048,1704517842040,-170.93356,0.00036893,2]
[310372049,1704517842048,-987.200355,0.00036893,2]
[310372050,1704517842057,-636.06,0.00036986,3]
[310372051,1704517842066,-500.0,0.00036986,3]
[310372052,1704517842075,-1667.24,0.00036986,3]
[310372053,1704517842085,-500.0,0.00036986,3]
[310372054,1704517842094,-500.0,0.00036986,3]
[310372055,1704517842102,-1506.95,0.00036986,3]
[310372056,1704517842111,-9724.27,0.00036986,3]
[310372057,1704517842121,-515.89,0.00036986,3]
[310372058,1704517842130,-966.27,0.00036986,3]
[310372059,1704517842139,-512.32994057,0.00037,7]
[310372060,1704517842149,-500.0,0.00037,7]
[310372061,1704517842159,-2553.161024,0.00037075,2]
[310372062,1704517842171,-300.0,0.000372,19]
[310372063,1704517842180,-636.06,0.0003726,3]
[310372064,1704517842189,-500.0,0.0003726,3]
[310372065,1704517842198,-1667.24,0.0003726,3]
[310372066,1704517842207,-500.0,0.0003726,3]
[310372067,1704517842217,-500.0,0.0003726,3]
[310372068,1704517842226,-1506.95,0.0003726,3]
[310372069,1704517842235,-9724.27,0.0003726,3]
[310372070,1704517842244,-515.89,0.0003726,3]
[310372071,1704517842254,-966.27,0.0003726,3]
[310372072,1704517842263,-987.200355,0.00037343,2]
[310372073,1704517842272,-276000.0,0.00037433,2]
[310372074,1704517842284,-636.06,0.00037534,3]
[310372075,1704517842295,-500.0,0.00037534,3]
[310372076,1704517842304,-1667.24,0.00037534,3]
[310372077,1704517842312,-331.22479234,0.00037534,3]
[310372078,1704517842321,-500.0,0.00037534,3]
[310372079,1704517842331,-1506.95,0.00037534,3]
[310372080,1704517842339,-9724.27,0.00037534,3]
[310372081,1704517842349,-515.89,0.00037534,3]
[310372082,1704517842360,-966.27,0.00037534,3]
[310372083,1704517842369,-1230.90349658,0.00037682,10]
[310372084,1704517842379,-219.96908355,0.0003777,30]
[310372085,1704517842393,-171.286408,0.00037793,2]
[310372086,1704517842402,-170.93356,0.00037793,2]
[310372087,1704517842411,-987.200355,0.00037793,2]
[310372088,1704517842419,-636.06,0.00037808,3]
[310372089,1704517842429,-500.0,0.00037808,3]
[310372090,1704517842438,-1667.24,0.00037808,3]
[310372091,1704517842447,-500.0,0.00037808,3]
[310372092,1704517842456,-1506.95,0.00037808,3]
[310372093,1704517842465,-9724.27,0.00037808,3]
[310372094,1704517842476,-515.89,0.00037808,3]
[310372095,1704517842487,-966.27,0.00037808,3]
[310372096,1704517842498,-155.0,0.0003781,2]
[310372097,1704517842509,-857.61279604,0.00037892,2]
[310372098,1704517842518,-1507.87048,0.000379,2]
[310372099,1704517842528,-498.5259615,0.00037989,5]
[310372100,1704517842537,-1570.12292109,0.00038,4]
[310372101,1704517842547,-6890.07317527,0.00038,7]
[310372102,1704517842557,-2361.87259161,0.00038,30]
[310372103,1704517842568,-244.12597039,0.00038,30]
[310372104,1704517842577,-500.0,0.00038,7]
[310372105,1704517842587,-636.06,0.00038082,3]
[310372106,1704517842597,-500.0,0.00038082,3]
[310372107,1704517842606,-1667.24,0.00038082,3]
[310372108,1704517842615,-500.0,0.00038082,3]
[310372109,1704517842624,-1506.95,0.00038082,3]
[310372110,1704517842634,-9724.27,0.00038082,3]
[310372111,1704517842643,-515.89,0.00038082,3]
[310372112,1704517842745,-966.27,0.00038082,3]
[310372113,1704517842755,-2553.161024,0.00038352,2]
[310372114,1704517842766,-636.06,0.00038356,3]
[310372115,1704517842776,-500.0,0.00038356,3]
[310372116,1704517842785,-1667.24,0.00038356,3]
[310372117,1704517842794,-500.0,0.00038356,3]
[310372118,1704517842804,-1506.95,0.00038356,3]
[310372119,1704517842814,-9724.27,0.00038356,3]
[310372120,1704517842823,-500.0,0.00038356,2]
[310372121,1704517842832,-515.89,0.00038356,3]
[310372122,1704517842841,-966.27,0.00038356,3]
[310372123,1704517842851,-154.3354202,0.0003863,10]
[310372124,1704517842860,-745.49824447,0.0003863,10]
[310372125,1704517842869,-351.20913952,0.0003863,7]
[310372126,1704517842878,-636.06,0.0003863,3]
[310372127,1704517842887,-521.84877113,0.0003863,10]
[310372128,1704517842896,-500.0,0.0003863,3]
[310372129,1704517842905,-1000.0,0.0003863,10]
[310372130,1704517842914,-1667.24,0.0003863,3]
[310372131,1704517842923,-500.0,0.0003863,3]
[310372132,1704517842932,-1506.95,0.0003863,3]
[310372133,1704517842941,-9724.27,0.0003863,3]
[310372134,1704517842949,-515.89,0.0003863,3]
[310372135,1704517842959,-966.27,0.0003863,3]
[310372136,1704517842968,-186.37456112,0.0003863,10]
[310372137,1704517842977,-558.009413,0.000387,20]
[310372138,1704517842987,-466.0,0.0003874,2]
[310372139,1704517842996,-175.24530589,0.000388,45]
[310372140,1704517843005,-636.06,0.00038904,3]
[310372141,1704517843014,-500.0,0.00038904,3]
[310372142,1704517843024,-1667.24,0.00038904,3]
[310372143,1704517843034,-500.0,0.00038904,3]
[310372144,1704517843043,-1506.95,0.00038904,3]
[310372145,1704517843052,-9724.27,0.00038904,3]
[310372146,1704517843061,-515.89,0.00038904,3]
[310372147,1704517843069,-966.27,0.00038904,3]
[310372148,1704517843078,-441.20251203,0.00039,2]
[310372149,1704517843088,-154.82968734,0.00039,4]
[310372150,1704517843097,-704.76462942,0.00039,4]
[310372151,1704517843106,-500.0,0.00039,7]
[310372152,1704517843115,-7521.0,0.0003915,60]
[310372153,1704517843126,-283.0,0.0003915,60]
[310372154,1704517843135,-160.0,0.0003915,60]
[310372155,1704517843144,-150.0,0.0003916,7]
[310372156,1704517843154,-7521.0,0.0003916,60]
[310372157,1704517843163,-283.0,0.0003916,60]
[310372158,1704517843172,-160.0,0.0003916,60]
[310372159,1704517843181,-150.0,0.0003917,7]
[310372160,1704517843192,-7521.0,0.0003917,60]
[310372161,1704517843201,-283.0,0.0003917,60]
[310372162,1704517843210,-160.0,0.0003917,60]
[310372163,1704517843220,-151.0,0.00039172,2]
[310372164,1704517843229,-636.06,0.00039178,3]
[310372165,1704517843238,-500.0,0.00039178,3]
[310372167,1704517843247,-1667.24,0.00039178,3]
[310372168,1704517843256,-500.0,0.00039178,3]
[310372171,1704517843265,-1506.95,0.00039178,3]
[310372173,1704517843273,-9724.27,0.00039178,3]
[310372174,1704517843285,-515.89,0.00039178,3]
[310372176,1704517843296,-966.27,0.00039178,3]
[310372178,1704517843305,-155.0,0.0003918,2]
[310372181,1704517843316,-283.403252,0.000394,17]
[310372182,1704517843326,-636.06,0.00039452,3]
[310372184,1704517843336,-500.0,0.00039452,3]
[310372186,1704517843346,-1667.24,0.00039452,3]
[310372188,1704517843356,-500.0,0.00039452,3]
[310372191,1704517843366,-1506.95,0.00039452,3]
[310372192,1704517843376,-730.09517485,0.00039452,3]
[310372194,1704517843433,-2368.08291423,0.00039452,3]
[310372195,1704517843446,-6626.09191092,0.00039452,3]
[310372196,1704517843456,-515.89,0.00039452,3]
[310372197,1704517843466,-966.27,0.00039452,3]
[310372198,1704517843475,-2553.161024,0.0003963,2]
[310372199,1704517843485,-636.06,0.00039726,3]
[310372200,1704517843494,-500.0,0.00039726,3]
[310372201,1704517843504,-1667.24,0.00039726,3]
[310372202,1704517843513,-500.0,0.00039726,3]
[310372203,1704517843522,-1506.95,0.00039726,3]
[310372204,1704517843536,-9724.27,0.00039726,3]
[310372205,1704517843545,-515.89,0.00039726,3]
[310372206,1704517843555,-966.27,0.00039726,3]
[310372207,1704517843564,-187.87,0.0003996,7]
[310372208,1704517843574,-174.0,0.0003996,7]
[310372209,1704517843583,-150.0,0.0003997,7]
[310372210,1704517843592,-174.0,0.0003997,7]
[310372211,1704517843601,-150.0,0.0003998,7]
[310372212,1704517843610,-174.0,0.0003998,7]
[310372213,1704517843620,-1247.33092074,0.00039989,4]
[310372214,1704517843629,-309.61298454,0.00039989,4]
[310372215,1704517843638,-155.40165969,0.00039989,2]
[310372216,1704517843648,-155.5228318,0.00039989,4]
[310372217,1704517843657,-2018.41902236,0.0003999,4]
[310372218,1704517843666,-776.71987372,0.0003999,2]
[310372219,1704517843676,-360.13178057,0.0003999,4]